lending/lending_fUSD_20240504
["ID","MTS","AMOUNT","RATE_DAILY","PERIOD"]
[325413341,1714854708487,-500.0,0.00041643,32]
[325413342,1714854708496,-1330.72,0.00041643,32]
[325413343,1714854708505,-507.77963608,0.00041643,32]
[325413344,1714854708514,-1344.33,0.00041643,32]
[325413345,1714854708524,-254.8096407,0.00041643,32]
[325413346,1714854708533,-3385.2,0.00041643,32]
[325413347,1714854708542,-500.0,0.00041643,32]
[325413348,1714854708551,-500.0,0.00041643,32]
[325413349,1714854708560,-878.35,0.00041643,32]
[325413350,1714854708570,-500.0,0.00041643,32]
[325413351,1714854708579,-1206.1,0.00041643,32]
[325413352,1714854708588,-2878.8,0.00041643,32]
[325413353,1714854708597,-846.83,0.00041643,32]
[325413354,1714854708606,-500.0,0.00041643,32]
[325413355,1714854708616,-750.0,0.00041643,30]
[325413356,1714854708625,-500.0,0.00041643,32]
[325413357,1714854708635,-500.0,0.00041643,32]
[325413358,1714854708644,-500.0,0.00041643,32]
[325413359,1714854708653,-2822.68,0.00041643,32]
[325413360,1714854708663,-1544.08,0.00041643,32]
[325413361,1714854708672,-590.76,0.00041643,32]
[325413362,1714854708681,-1055.24,0.00041643,32]
[325413363,1714854708690,-2432.0,0.00041643,32]
[325413364,1714854708700,-499.9928231,0.00041643,32]
[325413365,1714854708710,-1285.14,0.00041643,32]
[325413366,1714854708721,-500.0,0.00041643,32]
[325413367,1714854708732,-500.0,0.00041643,32]
[325413368,1714854708741,-500.0,0.00041643,32]
[325413369,1714854708750,-500.0,0.00041643,32]
[325413370,1714854708759,-503.51975457,0.00041643,32]
[325413371,1714854708769,-500.0,0.00041643,32]
[325413372,1714854708779,-769.86,0.00041643,32]
[325413373,1714854708790,-2519.53,0.00041643,32]
[325413374,1714854708799,-500.0,0.00041643,32]
[325413375,1714854708808,-1687.65,0.00041643,32]
[325413376,1714854708817,-37730.13,0.00041643,32]
[325413377,1714854708827,-954.49,0.00041643,32]
[325413378,1714854708836,-500.0,0.00041643,32]
[325413379,1714854708846,-500.0,0.00041643,32]
[325413380,1714854708855,-1274.32,0.00041643,32]
[325413381,1714854708864,-6475.15,0.00041643,32]
[325413382,1714854708874,-1228.46,0.00041643,32]
[325413383,1714854708883,-503.13850574,0.00041643,32]
[325413384,1714854708893,-500.0,0.00041643,32]
[325413385,1714854708902,-2493.8,0.00041643,32]
[325413386,1714854708912,-841.02,0.00041643,32]
[325413387,1714854708921,-500.0,0.00041643,32]
[325413388,1714854708930,-500.0,0.00041643,32]
[325413389,1714854708940,-503.00425178,0.00041643,32]
[325413390,1714854708949,-3771.83,0.00041643,32]
[325413391,1714854708958,-500.0,0.00041643,32]
[325413392,1714854708967,-1241.94,0.00041643,32]
[325413393,1714854708977,-4135.79,0.00041643,32]
[325413394,1714854708986,-500.0,0.00041643,32]
[325413395,1714854708995,-500.0,0.00041643,32]
[325413396,1714854709005,-656.62,0.00041643,32]
[325413397,1714854709014,-1271.69,0.00041643,32]
[325413398,1714854709023,-1328.52,0.00041643,32]
[325413399,1714854709032,-500.0,0.00041643,32]
[325413400,1714854709041,-500.0,0.00041643,32]
[325413401,1714854709050,-6153.62,0.00041643,32]
[325413402,1714854709059,-862.42,0.00041643,32]
[325413403,1714854709068,-570.95,0.00041643,32]
[325413404,1714854709078,-8848.42,0.00041643,32]
[325413405,1714854709087,-1507.99,0.00041643,32]
[325413406,1714854709096,-500.0,0.00041643,32]
[325413407,1714854709106,-4960.51,0.00041643,32]
[325413408,1714854709116,-2218.64006509,0.00041643,32]
[325413410,1714854946794,366.65803,0.000102,2]
[325413412,1714855006773,305.54836,0.000102,2]
[325413416,1714855327024,3078.44148882,0.00010179,2]
[325413417,1714855327515,156.63148851,0.00010179,2]
[325413446,1714855832266,-158.74333394,0.00012382,2]
[325413447,1714855832277,-248.69773149,0.00012482,2]
[325413448,1714855832290,-117.41867296,0.00012482,2]
[325413449,1714855832300,-366.11640444,0.00012541,2]
[325413450,1714855832310,-247.7849226,0.00012582,2]
[325413462,1714855838288,-570.1183774,0.00012582,2]
[325413463,1714855838298,-4510.33874429,0.000126,2]
[325413464,1714855838309,-8763.58245571,0.000126,2]
[325413465,1714855838318,-366.11640444,0.000126,2]
[325413466,1714855838327,-8425.7937,0.000127,2]
[325413467,1714855838337,-1022.48186868,0.000127,2]
[325413468,1714855838389,-2268.25408316,0.000127,2]
[325413469,1714855838461,-3847.87644816,0.000127,2]
[325413470,1714855838471,-8959.92355184,0.000128,2]
[325413471,1714855838482,-6286.90000002,0.000128,2]
[325413489,1714855840278,-4316.5918931,0.000128,2]
[325413490,1714855840289,-532.87047243,0.000128,2]
[325413491,1714855840301,-36657.06576256,0.000128,2]
[325413492,1714855840430,-43246.64832005,0.000128,2]
[325413493,1714855840440,-1000.0,0.000128,2]
[325413494,1714855840450,-245000.0,0.000128,2]
[325413495,1714855840460,-11924.877206,0.000129,2]
[325413496,1714855840469,-165.1805,0.000129,2]
[325413497,1714855840487,-188.60134713,0.00013,2]
[325413498,1714855840496,-446.05,0.000149,2]
[325413499,1714855840505,-209.24031346,0.000149,2]
[325413500,1714855840515,-2526.12,0.000149,2]
[325413501,1714855840525,-232.42,0.000149,2]
[325413502,1714855840534,-3431.10609052,0.00015,2]
[325413503,1714855840544,-201.1,0.00015949,3]
[325413504,1714855840554,-951.46806193,0.000165,2]
[325413505,1714855840563,-1018.64789512,0.0001788,2]
[325413506,1714855840572,-1018.64789504,0.0001788,2]
[325413507,1714855840582,-165.95926693,0.0001788,2]
[325413508,1714855840592,-310.64111172,0.00018153,2]
[325413509,1714855840602,-2299.0,0.00018253,2]
[325413510,1714855840611,-972.603,0.00018253,2]
[325413511,1714855840621,-462.0,0.00018253,2]
[325413512,1714855840630,-1396.0,0.00018253,2]
[325413513,1714855840640,-808.0,0.00018253,2]
[325413514,1714855840649,-438.0,0.00018253,2]
[325413515,1714855840659,-1786.0,0.00018253,2]
[325413516,1714855840668,-610.0,0.00018253,2]
[325413517,1714855840677,-355.0,0.00018253,2]
[325413518,1714855840687,-299.259,0.00018253,2]
[325413519,1714855840696,-2448.0,0.00018253,2]
[325413520,1714855840706,-244.268,0.00018253,2]
[325413521,1714855840715,-1476.0,0.00018253,2]
[325413522,1714855840725,-421.0,0.00018253,2]
[325413523,1714855840735,-1642.0,0.00018253,2]
[325413524,1714855840745,-443.0,0.00018253,2]
[325413525,1714855840754,-204.303,0.00018253,2]
[325413526,1714855840764,-223.0,0.00018253,2]
[325413527,1714855840778,-1129.0,0.00018253,2]
[325413528,1714855840787,-3132.0,0.00018253,2]
[325413529,1714855840797,-5736.0,0.00018253,2]
[325413530,1714855840806,-37738.0,0.00018253,2]
[325413531,1714855840816,-5899.0,0.00018253,2]
[325413532,1714855840825,-2291.0,0.00018253,2]
[325413533,1714855840835,-201.1,0.00018285,3]
[325413534,1714855840845,-2100.0,0.00018724,2]
[325413535,1714855840855,-1018.64789504,0.00019431,2]
[325413536,1714855840865,-155.0,0.00019724,2]
[325413537,1714855840875,-1086.31014142,0.00019725,2]
[325413538,1714855840884,-5175.72990395,0.0002,2]
[325413539,1714855840893,-6227.01127323,0.0002,2]
[325413540,1714855840903,-2000.0,0.0002,2]
[325413541,1714855840912,-603.4,0.0002,2]
[325413542,1714855840922,-600.0,0.0002,2]
[325413543,1714855840932,-201.1,0.00020621,3]
[325413544,1714855840942,-155.0,0.000209,2]
[325413545,1714855840951,-716.44946922,0.00021,2]
[325413546,1714855840960,-500.0,0.00021009,2]
[325413547,1714855840970,-436.0,0.00021253,2]
[325413548,1714855840979,-1786.0,0.00021253,2]
[325413549,1714855840988,-209.0,0.00021253,2]
[325413550,1714855840998,-2751.0,0.00021548,2]
[325413551,1714855841008,-388.54,0.00021644,2]
[325413552,1714855841018,-157.58,0.00021672,2]
[325413553,1714855841027,-1542.63,0.00021836,2]
[325413554,1714855841036,-6757.61638509,0.000219,2]
[325413555,1714855841046,-2000.0,0.00021918,3]
[325413556,1714855841055,-1018.64789504,0.00022746,2]
[325413557,1714855841064,-165.9592669,0.00022746,2]
[325413558,1714855841074,-2000.0,0.0002276,2]
[325413559,1714855841083,-699.77,0.00022849,2]
[325413560,1714855841092,-200.0,0.00022933,2]
[325413561,1714855841101,-201.1,0.00022956,3]
[325413562,1714855841110,-17693.23462494,0.00023,2]
[325413563,1714855841119,-770.41,0.00023113,2]
[325413564,1714855841129,-2000.61208485,0.000234,2]
[325413565,1714855841138,-432.11468821,0.00024,2]
[325413566,1714855841148,-14632.68,0.00024051,2]
[325413567,1714855841157,-250.0,0.00024135,2]
[325413568,1714855841167,-150.0,0.00024253,2]
[325413569,1714855841176,-250.0,0.00024384,2]
[325413570,1714855841186,-253.23,0.00024384,2]
[325413571,1714855841195,-300.0,0.00024487,2]
[325413572,1714855841204,-888.0,0.00024657,2]
[325413573,1714855841214,-456.66329758,0.00025,7]
[325413574,1714855841223,-471.39951687,0.00025,2]
[325413575,1714855841233,-5000.0,0.00025,2]
[325413576,1714855841242,-2607.87522376,0.00025,2]
[325413577,1714855841251,-170.525,0.00025,2]
[325413578,1714855841261,-201.1,0.00025292,5]
[325413579,1714855841270,-300.0,0.00025857,2]
[325413580,1714855841279,-888.0,0.00026027,4]
[325413581,1714855841289,-1018.64789504,0.00026062,2]
[325413582,1714855841298,-535.24,0.00026864,2]
[325413583,1714855841308,-1740.25372259,0.00027,2]
[325413584,1714855841317,-3215.11,0.00027068,15]
[325413585,1714855841327,-180.0,0.00027087,2]
[325413586,1714855841336,-405.26272524,0.00027397,2]
[325413587,1714855841345,-888.0,0.00027397,6]
[325413588,1714855841355,-201.28483837,0.00027397,2]
[325413589,1714855841364,-150.0,0.00027397,2]
[325413590,1714855841374,-967.69,0.00027397,10]
[325413591,1714855841383,-253.23,0.00027432,2]
[325413592,1714855841393,-167.65,0.00027466,2]
[325413593,1714855841402,-352.0,0.000276,2]
[325413594,1714855841413,-1000.0,0.000276,2]
[325413595,1714855841423,-224.0,0.000276,2]
[325413596,1714855841433,-201.1,0.00027628,5]
[325413597,1714855841442,-388.54,0.00027714,2]
[325413598,1714855841451,-151.93234977,0.00028059,2]
[325413599,1714855841461,-150.0,0.00028118,2]
[325413600,1714855841470,-151.93234977,0.00028391,2]
[325413601,1714855841479,-888.0,0.00028767,9]
[325413602,1714855841488,-150.0,0.00028839,2]
[325413603,1714855841498,-151.93234977,0.00029366,2]
[325413604,1714855841508,-1018.64789504,0.00029377,2]
[325413605,1714855841517,-150.0,0.0002956,2]
[325413606,1714855841526,-210.557337,0.00029604,2]
[325413607,1714855841536,-151.93234977,0.00029683,2]
[325413608,1714855841545,-201.1,0.00029964,7]
[325413609,1714855841555,-5677.45044794,0.0003,2]
[325413610,1714855841564,-888.0,0.00030136,11]
[325413611,1714855841573,-150.0,0.00030197,2]
[325413612,1714855841583,-150.0,0.00030281,2]
[325413613,1714855841592,-163.02022217,0.00030473,7]
[325413614,1714855841603,-253.23,0.0003048,2]
[325413615,1714855841612,-172.0,0.0003054,29]
[325413616,1714855841622,-1542.63,0.00030571,2]
[325413617,1714855841631,-150.0,0.00030598,30]
[325413618,1714855841641,-3215.11,0.00030804,15]
[325413619,1714855841650,-1748.69131799,0.0003082,5]
[325413620,1714855841660,-150.0,0.00031002,2]
[325413621,1714855841669,-155.91023967,0.00031317,7]
[325413622,1714855841679,-4822.22,0.00031426,2]
[325413623,1714855841688,-151.93234977,0.00031445,7]
[325413624,1714855841697,-888.0,0.00031506,13]
[325413625,1714855841707,-150.0,0.00031723,2]
[325413626,1714855841717,-155.91023967,0.00031815,7]
[325413627,1714855841728,-201.1,0.000323,14]
[325413628,1714855841737,-156.03484494,0.00032429,7]
[325413629,1714855841746,-150.0,0.00032444,2]
[325413630,1714855841756,-157.58,0.00032508,120]
[325413631,1714855841766,-1018.64789504,0.00032693,2]
[325413632,1714855841777,-165.9592669,0.00032693,2]
[325413633,1714855841789,-649.87782133,0.00032876,15]
[325413634,1714855841799,-176.43,0.00032916,2]
[325413635,1714855841808,-150.0,0.00033165,2]
[325413636,1714855841819,-167.78239649,0.00033375,7]
[325413637,1714855841829,-253.23,0.00033528,2]
[325413638,1714855841838,-388.54,0.00033785,2]
[325413639,1714855841847,-150.0,0.00033886,2]
[325413640,1714855841860,-770.41,0.00034346,120]
[325413641,1714855841870,-318.0,0.0003454,5]
[325413642,1714855841880,-3215.11,0.0003454,15]
[325413643,1714855841889,-150.0,0.00034607,2]
[325413644,1714855841898,-201.1,0.00034636,14]
[325413645,1714855841908,-26330.23490107,0.000349,2]
[325413646,1714855841917,-151.93234977,0.00035158,7]
[325413647,1714855841927,-151.93234977,0.00035271,7]
[325413648,1714855841936,-150.0,0.00035328,2]
[325413649,1714855841946,-151.93234977,0.00035662,7]
[325413650,1714855841955,-300.0,0.00035809,2]
[325413651,1714855841964,-150.0,0.00035809,2]
[325413652,1714855841974,-300.37,0.00035809,2]
[325413653,1714855841985,-160.78,0.00035809,2]
[325413654,1714855841996,-150.0,0.00035809,2]
[325413655,1714855842007,-402.02,0.00035809,2]
[325413656,1714855842017,-1018.64789504,0.00036008,2]
[325413657,1714855842026,-150.0,0.00036049,2]
[325413658,1714855842036,-167.78239649,0.00036366,7]
[325413659,1714855842045,-253.23,0.00036576,2]
[325413660,1714855842055,-150.0,0.0003677,2]
[325413661,1714855842064,-151.93234977,0.00036793,7]
[325413662,1714855842074,-151.93234977,0.00036914,7]
[325413663,1714855842083,-201.1,0.00036971,14]
[325413664,1714855842092,-160.0,0.00037,11]
[325413665,1714855842104,-7349.58000359,0.00037011,5]
[325413666,1714855842113,-500.0,0.00037355,3]
[325413667,1714855842124,-500.0,0.00037364,3]
[325413668,1714855842134,-500.0,0.00037373,3]
[325413669,1714855842145,-500.0,0.00037381,3]
[325413670,1714855842155,-500.0,0.0003739,3]
[325413671,1714855842164,-500.0,0.00037399,3]
[325413672,1714855842175,-150.0,0.00037491,2]
[325413673,1714855842185,-268.2,0.00038,14]
[325413674,1714855842194,-535.24,0.00038096,120]
[325413675,1714855842203,-150.0,0.00038212,2]
[325413677,1714855842212,-155.51708233,0.00038262,7]
[325413678,1714855842223,-3215.11,0.00038276,15]
[325413679,1714855842231,-500.0,0.00038355,10]
[325413680,1714855842241,-500.0,0.00038355,10]
[325413681,1714855842250,-151.93234977,0.00038429,7]
[325413682,1714855842259,-268.2,0.00038475,14]
[325413683,1714855842268,-151.93234977,0.00038576,7]
[325413684,1714855842279,-154.58530509,0.00038625,7]
[325413685,1714855842290,-151.64494577,0.00038896,7]
[325413686,1714855842299,-1000.0,0.00038904,120]
[325413687,1714855842309,-150.0,0.00038933,2]
[325413688,1714855842318,-1000.0,0.00039,7]
[325413689,1714855842329,-200.0,0.00039007,20]
[325413690,1714855842338,-201.1,0.00039307,14]
[325413691,1714855842348,-1018.64789504,0.00039324,2]
[325413692,1714855842358,-151.0,0.00039416,2]
[325413693,1714855842367,-155.51708233,0.00039424,7]
[325413694,1714855842378,-500.0,0.00039451,10]
[325413695,1714855842387,-500.0,0.00039451,10]
[325413696,1714855842396,-151.93234977,0.00039532,7]
[325413697,1714855842405,-150.0,0.000396,10]
[325413698,1714855842414,-150.0,0.00039654,2]
[325413699,1714855842426,-268.2,0.00039685,14]
[325413700,1714855842435,-388.54,0.00039856,2]
[325413701,1714855842444,-1000.0,0.000399,7]
[325413702,1714855842454,-268.2,0.00039988,14]
[325413703,1714855842463,-187.77550219,0.0004,4]
[325413704,1714855842472,-155.0,0.0004,15]
[325413705,1714855842482,-155.0,0.0004,15]
[325413706,1714855842492,-2857.58476678,0.0004,5]
[325413707,1714855842501,-193.34330982,0.0004,2]
[325413708,1714855842511,-7755.5603886,0.0004,5]
[325413709,1714855842520,-488.46440809,0.0004001,30]
[325413710,1714855842530,-150.0,0.000401,10]
[325413711,1714855842539,-152.41856814,0.00040241,30]
[325413712,1714855842548,-151.93234977,0.00040248,30]
[325413713,1714855842557,-150.0,0.00040375,2]
[325413714,1714855842568,-500.0,0.000405,14]
[325413715,1714855842577,-500.0,0.00040547,10]
[325413716,1714855842586,-500.0,0.00040547,10]
[325413717,1714855842596,-156.03484494,0.00040558,30]
[325413718,1714855842606,-1000.0,0.000406,14]
[325413719,1714855842615,-150.0,0.000406,10]
[325413720,1714855842624,-1500.0,0.000407,14]
[325413721,1714855842634,-151.64494579,0.00040733,30]
[325413722,1714855842643,-151.9323498,0.00040795,30]
[325413723,1714855842653,-2000.0,0.000408,14]
[325413724,1714855842662,-2500.0,0.000409,14]
[325413725,1714855842674,-11597.76386676,0.00040955,2]
[325413726,1714855842683,-1261.14951651,0.00040976,2]
[325413727,1714855842693,-153.20799381,0.00040995,10]
[325413728,1714855842703,-3017.6733,0.00040995,10]
[325413729,1714855842713,-500.0,0.00040995,2]
[325413730,1714855842722,-10000.0,0.00040995,120]
[325413731,1714855842731,-12062.07331579,0.00041,10]
[325413732,1714855842741,-155.51708233,0.00041039,30]
[325413733,1714855842750,-257.03149954,0.00041093,2]
[325413734,1714855842759,-1039.45459189,0.00041095,4]
[325413735,1714855842769,-1146.25735278,0.00041095,10]
[325413736,1714855842781,-500.81823482,0.00041095,30]
[325413737,1714855842791,-157.46619685,0.00041095,30]
[325413738,1714855842801,-500.0,0.00041095,30]
[325413739,1714855842810,-500.0,0.00041095,30]
[325413740,1714855842820,-500.0,0.00041095,30]
[325413741,1714855842830,-500.0,0.00041095,30]
[325413742,1714855842839,-501.35258588,0.00041095,30]
[325413743,1714855842848,-500.0,0.00041095,30]
[325413744,1714855842857,-500.0,0.00041095,30]
[325413745,1714855842867,-1518.47,0.00041095,30]
[325413746,1714855842877,-500.0,0.00041095,30]
[325413748,1714855842886,-500.0,0.00041095,30]
[325413749,1714855842895,-500.0,0.00041095,30]
[325413750,1714855842905,-500.0,0.00041095,30]
[325413751,1714855842915,-500.0,0.00041095,30]
[325413752,1714855842924,-500.0,0.00041095,30]
[325413753,1714855842933,-500.0,0.00041095,30]
[325413754,1714855842943,-200.33446167,0.00041095,21]
[325413755,1714855842952,-500.0,0.00041095,30]
[325413756,1714855842961,-500.0,0.00041095,30]
[325413757,1714855842970,-300.0,0.00041095,7]
[325413758,1714855842979,-500.0,0.00041095,30]
[325413759,1714855842988,-500.0,0.00041095,30]
[325413760,1714855842997,-950.11,0.00041095,30]
[325413761,1714855843006,-500.0,0.00041095,30]
[325413762,1714855843016,-500.0,0.00041095,30]
[325413763,1714855843025,-500.0,0.00041095,30]
[325413764,1714855843034,-500.0,0.00041095,30]
[325413765,1714855843043,-500.0,0.00041095,30]
[325413766,1714855843052,-500.0,0.00041095,30]
[325413767,1714855843061,-500.0,0.00041095,30]
[325413768,1714855843069,-500.0,0.00041095,30]
[325413769,1714855843079,-500.0,0.00041095,30]
[325413770,1714855843088,-300.58904292,0.00041095,30]
[325413771,1714855843097,-585.45,0.00041095,30]
[325413772,1714855843106,-953.1,0.00041095,30]
[325413773,1714855843115,-500.0,0.00041095,30]
[325413774,1714855843124,-710.84,0.00041095,30]
[325413775,1714855843134,-500.0,0.00041095,30]
[325413776,1714855843143,-1442.29,0.00041095,30]
[325413777,1714855843153,-1125.31,0.00041095,30]
[325413778,1714855843162,-500.0,0.00041095,30]
[325413779,1714855843171,-500.0,0.00041095,30]
[325413780,1714855843180,-500.0,0.00041095,30]
[325413782,1714855843189,-500.0,0.00041095,30]
[325413784,1714855843198,-500.0,0.00041095,30]
[325413786,1714855843206,-1057.57,0.00041095,30]
[325413787,1714855843215,-849.89,0.00041095,30]
[325413789,1714855843224,-500.0,0.00041095,30]
[325413792,1714855843234,-500.0,0.00041095,30]
[325413793,1714855843243,-650.15,0.00041095,30]
[325413795,1714855843252,-481.26009755,0.00041095,30]
[325413796,1714855843261,-500.0,0.00041095,30]
[325413797,1714855843269,-500.0,0.00041095,30]
[325413798,1714855843278,-500.0,0.00041095,30]
[325413799,1714855843287,-500.0,0.00041095,30]
[325413800,1714855843296,-500.0,0.00041095,30]
[325413801,1714855843305,-500.0,0.00041095,30]
[325413802,1714855843314,-500.0,0.00041095,30]
[325413803,1714855843324,-500.0,0.00041095,30]
[325413804,1714855843333,-500.0,0.00041095,30]
[325413805,1714855843342,-500.0,0.00041095,30]
[325413806,1714855843351,-500.0,0.00041095,30]
[325413807,1714855843360,-803.49,0.00041095,30]
[325413808,1714855843369,-500.0,0.00041095,30]
[325413809,1714855843378,-500.0,0.00041095,30]
[325413810,1714855843388,-798.73,0.00041095,30]
[325413811,1714855843397,-500.0,0.00041095,30]
[325413812,1714855843406,-500.0,0.00041095,30]
[325413813,1714855843416,-500.0,0.00041095,30]
[325413814,1714855843426,-1190.34,0.00041095,30]
[325413815,1714855843435,-500.0,0.00041095,30]
[325413816,1714855843444,-617.44890536,0.00041095,30]
[325413817,1714855843453,-500.0,0.00041095,30]
[325413818,1714855843463,-500.0,0.00041095,30]
[325413819,1714855843472,-500.0,0.00041095,30]
[325413820,1714855843482,-500.0,0.00041095,30]
[325413821,1714855843491,-500.0,0.00041095,30]
[325413822,1714855843501,-512.95,0.00041095,30]
[325413823,1714855843511,-500.0,0.00041095,30]
[325413824,1714855843520,-500.0,0.00041095,30]
[325413825,1714855843530,-611.86,0.00041095,30]
[325413826,1714855843540,-501.93195246,0.00041095,30]
[325413827,1714855843551,-500.0,0.00041095,30]
[325413828,1714855843561,-1323.32,0.00041095,30]
[325413829,1714855843570,-500.0,0.00041095,30]
[325413830,1714855843579,-703.61,0.00041095,30]
[325413831,1714855843588,-500.0,0.00041095,30]
[325413832,1714855843598,-500.0,0.00041095,30]
[325413833,1714855843607,-500.0,0.00041095,30]
[325413834,1714855843616,-429.20166765,0.00041095,30]
[325413835,1714855843626,-500.0,0.00041095,30]
[325413836,1714855843636,-605.27,0.00041095,30]
[325413837,1714855843645,-938.76,0.00041095,30]
[325413838,1714855843654,-500.0,0.00041095,30]
[325413839,1714855843663,-594.9,0.00041095,30]
[325413840,1714855843672,-789.23,0.00041095,30]
[325413842,1714855843681,-500.0,0.00041095,30]
[325413843,1714855843690,-500.0,0.00041095,30]
[325413844,1714855843699,-908.72,0.00041095,30]
[325413845,1714855843709,-555.95,0.00041095,30]
[325413846,1714855843718,-500.0,0.00041095,30]
[325413847,1714855843727,-500.0,0.00041095,30]
[325413848,1714855843736,-549.37,0.00041095,30]
[325413865,1714855843983,-1177.95,0.00041095,30]
[325413867,1714855843993,-500.0,0.00041095,30]
[325413869,1714855844003,-500.0,0.00041095,30]
[325413871,1714855844012,-500.0,0.00041095,2]
[325413873,1714855844023,-683.19,0.00041095,30]
[325413875,1714855844033,-1106.07,0.00041095,30]
[325413877,1714855844043,-500.0,0.00041095,30]
[325413879,1714855844053,-1012.53,0.00041095,30]
[325413881,1714855844063,-500.0,0.00041095,30]
[325413883,1714855844073,-763.07,0.00041095,30]
[325413885,1714855844082,-500.0,0.00041095,30]
[325413887,1714855844092,-1204.34,0.00041095,30]
[325413889,1714855844101,-500.0,0.00041095,30]
[325413891,1714855844111,-1221.18,0.00041095,30]
[325413893,1714855844120,-500.0,0.00041095,30]
[325413895,1714855844129,-383.62337848,0.00041095,30]
[325413897,1714855844138,-875.68,0.00041095,30]
[325413899,1714855844148,-742.35,0.00041095,30]
[325413901,1714855844157,-689.2,0.00041095,30]
[325413903,1714855844166,-1351.7,0.00041095,30]
[325413905,1714855844176,-500.0,0.00041095,30]
[325413907,1714855844185,-540.28,0.00041095,30]
[325413909,1714855844194,-500.0,0.00041095,30]
[325413911,1714855844204,-500.0,0.00041095,30]
[325413913,1714855844214,-500.0,0.00041095,30]
[325413915,1714855844223,-1008.98,0.00041095,30]
[325413917,1714855844233,-593.01,0.00041095,30]
[325413919,1714855844242,-500.0,0.00041095,30]
[325413921,1714855844252,-533.34,0.00041095,30]
[325413923,1714855844261,-502.76597381,0.00041095,30]
[325413925,1714855844271,-500.0,0.00041095,30]
[325413927,1714855844281,-500.0,0.00041095,30]
[325413928,1714855844290,-500.0,0.00041095,30]
[325413929,1714855844300,-574.97,0.00041095,30]
[325413930,1714855844309,-998.25,0.00041095,30]
[325413931,1714855844319,-522.42,0.00041095,30]
[325413932,1714855844330,-625.76,0.00041095,30]
[325413933,1714855844340,-500.0,0.00041095,30]
[325413934,1714855844350,-500.0,0.00041095,30]
[325413935,1714855844361,-749.2,0.00041095,30]
[325413936,1714855844372,-500.0,0.00041095,2]
[325413937,1714855844383,-500.0,0.00041095,30]
[325413938,1714855844392,-500.0,0.00041095,30]
[325413939,1714855844401,-500.0,0.00041095,30]
[325413940,1714855844412,-500.0,0.00041095,30]
[325413941,1714855844422,-500.0,0.00041095,30]
[325413942,1714855844432,-500.0,0.00041095,30]
[325413943,1714855844442,-600.9,0.00041095,30]
[325413944,1714855844452,-500.0,0.00041095,30]
[325413945,1714855844462,-500.0,0.00041095,30]
[325413946,1714855844472,-500.0,0.00041095,30]
[325413947,1714855844483,-1156.41,0.00041095,30]
[325413948,1714855844492,-1076.21,0.00041095,30]
[325413949,1714855844502,-500.0,0.00041095,30]
[325413950,1714855844512,-1124.09,0.00041095,30]
[325413951,1714855844522,-500.0,0.00041095,30]
[325413952,1714855844533,-500.0,0.00041095,30]
[325413953,1714855844542,-605.88,0.00041095,30]
[325413954,1714855844552,-1182.29,0.00041095,30]
[325413955,1714855844564,-500.0,0.00041095,30]
[325413956,1714855844575,-202.58432277,0.00041095,30]
[325413957,1714855844584,-500.0,0.00041095,30]
[325413958,1714855844594,-500.0,0.00041095,30]